[Event "Live Chess"]
[Site "Chess.com"]
[Date "2024.06.01"]
[Round "-"]
[White "Tatarinov_Maxim"]
[Black "lateforthesky"]
[Result "1/2-1/2"]
[WhiteElo "2294"]
[BlackElo "2183"]
[TimeControl "300"]
[EndTime "10:42:16 PDT"]
[Termination "Game drawn by repetition"]

1. Nf3 {[%clk 0:04:56.9]} 1... Nf6 {[%clk 0:04:58.2]} 2. g3 {[%clk 0:04:54.9]}
2... g6 {[%clk 0:04:56.9]} 3. Bg2 {[%clk 0:04:54.1]} 3... Bg7 {[%clk 0:04:56.5]}
4. O-O {[%clk 0:04:52.9]} 4... O-O {[%clk 0:04:56]} 5. c4 {[%clk 0:04:52.2]}
5... d6 {[%clk 0:04:55]} 6. d4 {[%clk 0:04:50.8]} 6... Nbd7 {[%clk 0:04:53]} 7.
d5 {[%clk 0:04:49]} 7... Nb6 {[%clk 0:04:42.8]} 8. Qb3 {[%clk 0:04:41.1]} 8...
c6 {[%clk 0:04:38.8]} 9. dxc6 {[%clk 0:04:36.7]} 9... bxc6 {[%clk 0:04:38.1]}
10. Nd4 {[%clk 0:04:35.8]} 10... Qc7 {[%clk 0:04:19.3]} 11. Nc3 {[%clk
0:04:06.1]} 11... Be6 {[%clk 0:04:13]} 12. Nxc6 {[%clk 0:04:01]} 12... Bxc4
{[%clk 0:04:09.1]} 13. Qc2 {[%clk 0:03:35.5]} 13... Rac8 {[%clk 0:04:03.8]} 14.
Be3 {[%clk 0:03:23.7]} 14... Qd7 {[%clk 0:03:37.2]} 15. Nd4 {[%clk 0:03:15.2]}
15... e5 {[%clk 0:03:22.6]} 16. Nf3 {[%clk 0:03:09.7]} 16... Nbd5 {[%clk
0:03:02]} 17. Nxd5 {[%clk 0:03:03.3]} 17... Nxd5 {[%clk 0:02:55.2]} 18. Qd2
{[%clk 0:03:02.1]} 18... Nf6 {[%clk 0:02:37.7]} 19. Rfd1 {[%clk 0:02:57.8]}
19... Rfd8 {[%clk 0:02:35.1]} 20. Bg5 {[%clk 0:02:51.3]} 20... Be6 {[%clk
0:02:28.2]} 21. b3 {[%clk 0:02:37.6]} 21... h6 {[%clk 0:02:24.5]} 22. Bxf6
{[%clk 0:02:28.3]} 22... Bxf6 {[%clk 0:02:23.3]} 23. Rac1 {[%clk 0:02:27.6]}
23... Bg7 {[%clk 0:02:17.7]} 24. Rxc8 {[%clk 0:02:24.6]} 24... Qxc8 {[%clk
0:02:16.1]} 25. Rc1 {[%clk 0:02:21.7]} 25... Qd7 {[%clk 0:02:11.1]} 26. Qa5
{[%clk 0:02:08.6]} 26... Rc8 {[%clk 0:02:02]} 27. Qd2 {[%clk 0:01:56.4]} 27...
Rxc1+ {[%clk 0:01:59.6]} 28. Qxc1 {[%clk 0:01:54.9]} 28... d5 {[%clk 0:01:59]}
29. Nd2 {[%clk 0:01:52]} 29... f5 {[%clk 0:01:54.3]} 30. Qc5 {[%clk 0:01:40.6]}
30... e4 {[%clk 0:01:50.6]} 31. b4 {[%clk 0:01:30]} 31... d4 {[%clk 0:01:45.1]}
32. a4 {[%clk 0:01:21.7]} 32... d3 {[%clk 0:01:34.6]} 33. e3 {[%clk 0:01:09.8]}
33... Bf8 {[%clk 0:01:22]} 34. Qa5 {[%clk 0:00:58.2]} 34... Qc6 {[%clk
0:01:15.1]} 35. b5 {[%clk 0:00:54.2]} 35... Qc1+ {[%clk 0:01:13.3]} 36. Nf1
{[%clk 0:00:53.4]} 36... Ba3 {[%clk 0:00:55.4]} 37. b6 {[%clk 0:00:44.6]} 37...
axb6 {[%clk 0:00:53]} 38. Qxb6 {[%clk 0:00:44.5]} 38... Bf7 {[%clk 0:00:49.8]}
39. a5 {[%clk 0:00:30.4]} 39... d2 {[%clk 0:00:48.5]} 40. Qd8+ {[%clk
0:00:28.9]} 40... Kg7 {[%clk 0:00:47.4]} 41. Qxd2 {[%clk 0:00:28.4]} 41... Qxd2
{[%clk 0:00:45.4]} 42. Nxd2 {[%clk 0:00:28.3]} 42... Bb4 {[%clk 0:00:44.5]} 43.
Nf1 {[%clk 0:00:19.9]} 43... Bxa5 {[%clk 0:00:43.6]} 44. g4 {[%clk 0:00:19.3]}
44... Kf6 {[%clk 0:00:42.6]} 45. gxf5 {[%clk 0:00:18.5]} 45... gxf5 {[%clk
0:00:42.1]} 46. Ng3 {[%clk 0:00:17.4]} 46... Ke5 {[%clk 0:00:39.9]} 47. Bf1
{[%clk 0:00:16.4]} 47... Bb3 {[%clk 0:00:37.2]} 48. Ne2 {[%clk 0:00:15.4]} 48...
Be1 {[%clk 0:00:30.9]} 49. Bh3 {[%clk 0:00:13]} 49... Be6 {[%clk 0:00:28.9]} 50.
Nd4 {[%clk 0:00:12]} 50... Bd7 {[%clk 0:00:27.1]} 51. Kf1 {[%clk 0:00:11.5]}
51... Bc3 {[%clk 0:00:24.3]} 52. Nc2 {[%clk 0:00:10.4]} 52... f4 {[%clk
0:00:22.9]} 53. exf4+ {[%clk 0:00:09.4]} 53... Kxf4 {[%clk 0:00:21.7]} 54. Ne3
{[%clk 0:00:09.3]} 54... Bxh3+ {[%clk 0:00:19.7]} 55. Ke2 {[%clk 0:00:07.9]}
55... Bg4+ {[%clk 0:00:16.5]} 56. Kf1 {[%clk 0:00:06.5]} 56... Bf3 {[%clk
0:00:15.5]} 57. Nd5+ {[%clk 0:00:05.7]} 57... Kg4 {[%clk 0:00:13.5]} 58. Nxc3
{[%clk 0:00:05.6]} 58... Kh3 {[%clk 0:00:12.7]} 59. Nd5 {[%clk 0:00:05.2]} 59...
Kxh2 {[%clk 0:00:11.4]} 60. Ne3 {[%clk 0:00:05.1]} 60... h5 {[%clk 0:00:09.8]}
61. Nf5 {[%clk 0:00:05]} 61... h4 {[%clk 0:00:09]} 62. Nxh4 {[%clk 0:00:03.7]}
62... Kh3 {[%clk 0:00:07.9]} 63. Nxf3 {[%clk 0:00:03.1]} 63... exf3 {[%clk
0:00:07]} 64. Kg1 {[%clk 0:00:03]} 64... Kg4 {[%clk 0:00:06.1]} 65. Kh2 {[%clk
0:00:02.6]} 65... Kh4 {[%clk 0:00:05.6]} 66. Kh1 {[%clk 0:00:02.1]} 66... Kh3
{[%clk 0:00:04.9]} 67. Kg1 {[%clk 0:00:02]} 67... Kg4 {[%clk 0:00:04.3]} 68. Kh1
{[%clk 0:00:01.9]} 68... Kh4 {[%clk 0:00:03.8]} 69. Kh2 {[%clk 0:00:01.5]} 69...
Kg4 {[%clk 0:00:03.1]} 70. Kg1 {[%clk 0:00:01.4]} 70... Kh4 {[%clk 0:00:02.5]}
71. Kh1 {[%clk 0:00:01.3]} 71... Kg4 {[%clk 0:00:02]} 72. Kh2 {[%clk 0:00:01.2]}
72... Kh4 {[%clk 0:00:01.7]} 73. Kg1 {[%clk 0:00:01.1]} 73... Kg4 {[%clk
0:00:00.8]} 1/2-1/2

[Event "Live Chess"]
[Site "Chess.com"]
[Date "2024.06.01"]
[Round "-"]
[White "Richardallis"]
[Black "updatedopenings2024"]
[Result "1-0"]
[WhiteElo "1975"]
[BlackElo "1851"]
[TimeControl "300"]
[EndTime "10:42:21 PDT"]
[Termination "Richardallis won by resignation"]

1. d4 {[%clk 0:04:57.6]} 1... c5 {[%clk 0:04:58.5]} 2. d5 {[%clk 0:04:55.1]}
2... Nf6 {[%clk 0:04:56.7]} 3. c4 {[%clk 0:04:54.3]} 3... d6 {[%clk 0:04:56.6]}
4. Nc3 {[%clk 0:04:53.1]} 4... e6 {[%clk 0:04:55.9]} 5. e4 {[%clk 0:04:51.6]}
5... exd5 {[%clk 0:04:55.8]} 6. exd5 {[%clk 0:04:50.7]} 6... g6 {[%clk
0:04:55.7]} 7. Bd3 {[%clk 0:04:48.4]} 7... Bg7 {[%clk 0:04:55.6]} 8. Bg5 {[%clk
0:04:46.2]} 8... O-O {[%clk 0:04:55.5]} 9. Nge2 {[%clk 0:04:45.1]} 9... Nbd7
{[%clk 0:04:54.3]} 10. O-O {[%clk 0:04:43.2]} 10... Ne5 {[%clk 0:04:53.6]} 11.
Ng3 {[%clk 0:04:40]} 11... Nxd3 {[%clk 0:04:52.3]} 12. Qxd3 {[%clk 0:04:38.9]}
12... a6 {[%clk 0:04:48.4]} 13. Qd2 {[%clk 0:04:33.4]} 13... Qa5 {[%clk
0:04:46]} 14. Qf4 {[%clk 0:04:25.5]} 14... Qc7 {[%clk 0:04:40.2]} 15. Bxf6
{[%clk 0:04:23.5]} 1-0

[Event "Live Chess"]
[Site "Chess.com"]
[Date "2024.06.01"]
[Round "-"]
[White "Ninifu"]
[Black "LaupMiths"]
[Result "1-0"]
[WhiteElo "2030"]
[BlackElo "1825"]
[TimeControl "300"]
[EndTime "10:42:28 PDT"]
[Termination "Ninifu won by resignation"]

1. d4 {[%clk 0:04:57]} 1... Nf6 {[%clk 0:04:57.3]} 2. c4 {[%clk 0:04:55.7]} 2...
g6 {[%clk 0:04:56.8]} 3. Nc3 {[%clk 0:04:54.7]} 3... Bg7 {[%clk 0:04:54.6]} 4.
e4 {[%clk 0:04:53.9]} 4... d6 {[%clk 0:04:52.6]} 5. f4 {[%clk 0:04:53.3]} 5...
O-O {[%clk 0:04:51]} 6. Nf3 {[%clk 0:04:52.6]} 6... c5 {[%clk 0:04:46.7]} 7. d5
{[%clk 0:04:51.6]} 7... b5 {[%clk 0:04:43.4]} 8. cxb5 {[%clk 0:04:49.6]} 8... a6
{[%clk 0:04:42.4]} 9. a4 {[%clk 0:04:49]} 9... axb5 {[%clk 0:04:40.2]} 10. Bxb5
{[%clk 0:04:48]} 10... Ba6 {[%clk 0:04:37.7]} 11. Bd2 {[%clk 0:04:43.5]} 11...
e6 {[%clk 0:04:32.3]} 12. dxe6 {[%clk 0:04:27.1]} 12... fxe6 {[%clk 0:04:27.9]}
13. O-O {[%clk 0:04:22.5]} 13... d5 {[%clk 0:04:21.2]} 14. e5 {[%clk 0:04:12]}
14... Ne4 {[%clk 0:04:08.2]} 15. Nxe4 {[%clk 0:04:07.2]} 15... dxe4 {[%clk
0:04:05.4]} 16. Ng5 {[%clk 0:03:59.3]} 16... Bxb5 {[%clk 0:03:47.8]} 17. Nxe6
{[%clk 0:03:51.9]} 17... Qd3 {[%clk 0:03:44.8]} 18. Nxf8 {[%clk 0:03:45.7]}
18... Qxf1+ {[%clk 0:03:41.1]} 19. Qxf1 {[%clk 0:03:43.1]} 19... Bxf1 {[%clk
0:03:40.6]} 20. Ne6 {[%clk 0:03:26.2]} 20... Bd3 {[%clk 0:03:18.1]} 21. Nxc5
{[%clk 0:03:23.2]} 21... Nc6 {[%clk 0:03:16.1]} 22. Bc3 {[%clk 0:03:03.7]} 22...
g5 {[%clk 0:03:08.2]} 23. g3 {[%clk 0:03:00.3]} 23... gxf4 {[%clk 0:03:06.2]}
24. gxf4 {[%clk 0:02:59]} 24... Bh6 {[%clk 0:03:03.2]} 25. Kf2 {[%clk
0:02:39.4]} 25... Bxf4 {[%clk 0:02:59.8]} 26. Rg1+ {[%clk 0:02:37.2]} 26... Kf7
{[%clk 0:02:58.3]} 27. e6+ {[%clk 0:02:35.7]} 27... Ke7 {[%clk 0:02:47.3]} 28.
Rg7+ {[%clk 0:02:13.7]} 28... Kd6 {[%clk 0:02:43.9]} 29. b4 {[%clk 0:02:12.9]}
29... Nxb4 {[%clk 0:02:39.6]} 30. Bxb4 {[%clk 0:02:10.8]} 30... e3+ {[%clk
0:02:07.5]} 31. Kf3 {[%clk 0:02:06.6]} 31... Bxh2 {[%clk 0:02:05.9]} 32. Nxd3+
{[%clk 0:02:00.1]} 1-0

[Event "Live Chess"]
[Site "Chess.com"]
[Date "2024.06.01"]
[Round "-"]
[White "Queensandpawns"]
[Black "Isambard_Thomas"]
[Result "0-1"]
[WhiteElo "2453"]
[BlackElo "2151"]
[TimeControl "300"]
[EndTime "10:42:34 PDT"]
[Termination "Isambard_Thomas won by checkmate"]

1. e4 {[%clk 0:04:58.2]} 1... Nc6 {[%clk 0:04:58.6]} 2. d4 {[%clk 0:04:56.5]}
2... d5 {[%clk 0:04:57.8]} 3. Nc3 {[%clk 0:04:55.5]} 3... dxe4 {[%clk
0:04:56.6]} 4. d5 {[%clk 0:04:55.4]} 4... Ne5 {[%clk 0:04:55.3]} 5. Nxe4 {[%clk
0:04:54.7]} 5... Nf6 {[%clk 0:04:53]} 6. Nxf6+ {[%clk 0:04:52.8]} 6... exf6
{[%clk 0:04:52.3]} 7. c4 {[%clk 0:04:52.7]} 7... Bd6 {[%clk 0:04:51.4]} 8. Be2
{[%clk 0:04:51.3]} 8... O-O {[%clk 0:04:50.1]} 9. Be3 {[%clk 0:04:50.4]} 9... b6
{[%clk 0:04:44.1]} 10. Nf3 {[%clk 0:04:49.9]} 10... Bf5 {[%clk 0:04:40.8]} 11.
O-O {[%clk 0:04:48.3]} 11... Re8 {[%clk 0:04:39.4]} 12. Nd4 {[%clk 0:04:47.2]}
12... Bd7 {[%clk 0:04:36.9]} 13. Qd2 {[%clk 0:04:43.3]} 13... Qe7 {[%clk
0:04:32.6]} 14. Rfe1 {[%clk 0:04:41.3]} 14... c5 {[%clk 0:03:49.9]} 15. Nc2
{[%clk 0:04:36.3]} 15... f5 {[%clk 0:03:39.8]} 16. f4 {[%clk 0:04:29.5]} 16...
Ng4 {[%clk 0:03:32.7]} 17. Bxg4 {[%clk 0:04:28.1]} 17... fxg4 {[%clk 0:03:30.3]}
18. Re2 {[%clk 0:04:24.5]} 18... Qf6 {[%clk 0:03:27.4]} 19. Rae1 {[%clk
0:03:43.6]} 19... Bf5 {[%clk 0:03:16.6]} 20. b3 {[%clk 0:03:27.4]} 20... h5
{[%clk 0:03:03.4]} 21. b4 {[%clk 0:02:53.2]} 21... Re7 {[%clk 0:02:44.2]} 22.
bxc5 {[%clk 0:02:48.2]} 22... bxc5 {[%clk 0:02:43.3]} 23. Na3 {[%clk 0:02:42.3]}
23... a6 {[%clk 0:02:41.1]} 24. Qa5 {[%clk 0:02:26.6]} 24... Rae8 {[%clk
0:02:32.9]} 25. Qxa6 {[%clk 0:02:15.4]} 25... Bd3 {[%clk 0:02:31.5]} 26. Kf2
{[%clk 0:01:44.5]} 26... Rxe3 {[%clk 0:01:59.9]} 27. Rxe3 {[%clk 0:01:26.4]}
27... Qxf4+ {[%clk 0:01:57.5]} 28. Rf3 {[%clk 0:01:16]} 28... Qd2+ {[%clk
0:01:56]} 29. Kg1 {[%clk 0:01:13.6]} 29... Qxe1+ {[%clk 0:01:53.4]} 30. Rf1
{[%clk 0:01:13.5]} 30... Qxf1# {[%clk 0:01:52.5]} 0-1

[Event "Live Chess"]
[Site "Chess.com"]
[Date "2024.06.01"]
[Round "-"]
[White "Dhaydon19"]
[Black "KwikPhoenix"]
[Result "1-0"]
[WhiteElo "2689"]
[BlackElo "2458"]
[TimeControl "300"]
[EndTime "10:42:40 PDT"]
[Termination "Dhaydon19 won on time"]

1. d4 {[%clk 0:04:58.7]} 1... f5 {[%clk 0:04:57.4]} 2. Nf3 {[%clk 0:04:58.3]}
2... Nf6 {[%clk 0:04:56.4]} 3. c4 {[%clk 0:04:57.9]} 3... e6 {[%clk 0:04:55.7]}
4. g3 {[%clk 0:04:57.4]} 4... Be7 {[%clk 0:04:54.8]} 5. Bg2 {[%clk 0:04:57.1]}
5... O-O {[%clk 0:04:53.8]} 6. O-O {[%clk 0:04:56.8]} 6... d6 {[%clk 0:04:53.2]}
7. Nc3 {[%clk 0:04:56.5]} 7... Ne4 {[%clk 0:04:50.6]} 8. Qc2 {[%clk 0:04:55.2]}
8... Nxc3 {[%clk 0:04:49.6]} 9. Qxc3 {[%clk 0:04:54.6]} 9... a5 {[%clk
0:04:49.3]} 10. b3 {[%clk 0:04:53.9]} 10... Bf6 {[%clk 0:04:47.3]} 11. Bb2
{[%clk 0:04:53]} 11... Nc6 {[%clk 0:04:45.4]} 12. Qd2 {[%clk 0:04:52.1]} 12...
e5 {[%clk 0:04:40.2]} 13. dxe5 {[%clk 0:04:49.7]} 13... dxe5 {[%clk 0:04:39.8]}
14. Qe3 {[%clk 0:04:39.9]} 14... Qe8 {[%clk 0:04:10.1]} 15. Rad1 {[%clk
0:04:35.8]} 15... a4 {[%clk 0:04:03.6]} 16. Rd2 {[%clk 0:04:30]} 16... f4 {[%clk
0:03:57]} 17. Qe4 {[%clk 0:04:27.6]} 17... Qh5 {[%clk 0:03:52.9]} 18. h4 {[%clk
0:04:21.2]} 18... Bf5 {[%clk 0:03:42.5]} 19. Qd5+ {[%clk 0:04:19.6]} 19... Kh8
{[%clk 0:03:42.2]} 20. Qb5 {[%clk 0:04:03.6]} 20... e4 {[%clk 0:02:59.2]} 21.
Bxf6 {[%clk 0:03:59.5]} 21... exf3 {[%clk 0:02:55]} 22. Bxf3 {[%clk 0:03:56.3]}
22... Qg6 {[%clk 0:02:52.7]} 23. Bg5 {[%clk 0:03:52.5]} 23... fxg3 {[%clk
0:02:45.4]} 24. fxg3 {[%clk 0:03:50.3]} 24... h6 {[%clk 0:02:36.5]} 25. Bf4
{[%clk 0:03:46.2]} 25... Bh3 {[%clk 0:02:30.7]} 26. h5 {[%clk 0:03:43.8]} 26...
Qe6 {[%clk 0:02:15.8]} 27. Rf2 {[%clk 0:03:39.6]} 27... axb3 {[%clk 0:02:07.4]}
28. Qxb3 {[%clk 0:03:31.7]} 28... Na5 {[%clk 0:01:58.1]} 29. Qc3 {[%clk
0:03:29.8]} 29... Nxc4 {[%clk 0:01:52]} 30. Bd5 {[%clk 0:03:25.8]} 30... Qg4
{[%clk 0:01:01.7]} 31. Bxc4 {[%clk 0:03:21.2]} 31... Ra4 {[%clk 0:01:01.2]} 32.
e4 {[%clk 0:02:51.3]} 32... Kh7 {[%clk 0:00:29.9]} 33. e5 {[%clk 0:02:36.9]}
33... Qxh5 {[%clk 0:00:15.5]} 34. Qc2+ {[%clk 0:02:34.2]} 34... Bf5 {[%clk
0:00:13.6]} 35. Qxa4 {[%clk 0:02:29.8]} 35... Be4 {[%clk 0:00:13.1]} 36. Rg2
{[%clk 0:02:28.8]} 36... Qf3 {[%clk 0:00:05.9]} 37. Rdf2 {[%clk 0:02:27.5]}
37... Qc3 {[%clk 0:00:03.6]} 38. Bf1 {[%clk 0:02:26.2]} 38... Rxf4 {[%clk
0:00:02.1]} 39. gxf4 {[%clk 0:02:24.7]} 39... Bxg2 {[%clk 0:00:02]} 40. Bxg2
{[%clk 0:02:23.2]} 40... Qd4 {[%clk 0:00:01.9]} 41. Qxd4 {[%clk 0:02:21.5]} 1-0

[Event "Live Chess"]
[Site "Chess.com"]
[Date "2024.06.01"]
[Round "-"]
[White "koekoekoe"]
[Black "Duke_of_Bebington"]
[Result "1-0"]
[WhiteElo "2105"]
[BlackElo "1630"]
[TimeControl "300"]
[EndTime "10:42:40 PDT"]
[Termination "koekoekoe won by resignation"]

1. d4 {[%clk 0:04:57.5]} 1... d5 {[%clk 0:04:56.5]} 2. Bf4 {[%clk 0:04:56.8]}
2... c5 {[%clk 0:04:53.5]} 3. e3 {[%clk 0:04:55]} 3... cxd4 {[%clk 0:04:50.5]}
4. exd4 {[%clk 0:04:54.9]} 4... Nc6 {[%clk 0:04:49.6]} 5. c3 {[%clk 0:04:51.6]}
5... Qb6 {[%clk 0:04:27.6]} 6. Qb3 {[%clk 0:04:50.1]} 6... Qxb3 {[%clk
0:04:22.3]} 7. axb3 {[%clk 0:04:50]} 7... Bf5 {[%clk 0:04:20.2]} 8. Nd2 {[%clk
0:04:48]} 8... e6 {[%clk 0:04:18.2]} 9. Ngf3 {[%clk 0:04:44.1]} 9... h6 {[%clk
0:04:16.9]} 10. Bb5 {[%clk 0:04:41.7]} 10... Nf6 {[%clk 0:04:14]} 11. Ne5 {[%clk
0:04:40.7]} 11... Rc8 {[%clk 0:04:09]} 12. Rxa7 {[%clk 0:04:33]} 12... Nd7
{[%clk 0:03:57]} 13. Rxb7 {[%clk 0:04:21.2]} 13... Ncxe5 {[%clk 0:03:51.1]} 14.
Bxe5 {[%clk 0:04:18.6]} 14... Rd8 {[%clk 0:03:45.1]} 15. Bc7 {[%clk 0:04:03.4]}
1-0

[Event "Live Chess"]
[Site "Chess.com"]
[Date "2024.06.01"]
[Round "-"]
[White "degringolade64"]
[Black "GoldsmanB"]
[Result "1-0"]
[WhiteElo "2049"]
[BlackElo "1038"]
[TimeControl "300"]
[EndTime "10:43:01 PDT"]
[Termination "degringolade64 won by resignation"]

1. e4 {[%clk 0:04:56.9]} 1... e6 {[%clk 0:04:59.3]} 2. d4 {[%clk 0:04:55]} 2...
d5 {[%clk 0:04:58.2]} 3. e5 {[%clk 0:04:54.2]} 3... c5 {[%clk 0:04:56.6]} 4. c3
{[%clk 0:04:53]} 4... Nc6 {[%clk 0:04:54.8]} 5. Nf3 {[%clk 0:04:52.5]} 5... Qb6
{[%clk 0:04:51.2]} 6. Bd3 {[%clk 0:04:51.1]} 6... cxd4 {[%clk 0:04:49.8]} 7. O-O
{[%clk 0:04:49.5]} 7... dxc3 {[%clk 0:04:47.9]} 8. Nxc3 {[%clk 0:04:49.4]} 8...
d4 {[%clk 0:04:44.8]} 9. Na4 {[%clk 0:04:26]} 9... Qc7 {[%clk 0:04:40.5]} 10.
Re1 {[%clk 0:04:19.7]} 10... Nge7 {[%clk 0:04:35.5]} 11. Bd2 {[%clk 0:04:12.3]}
11... Nf5 {[%clk 0:04:32.9]} 12. Rc1 {[%clk 0:03:57.6]} 12... Qb8 {[%clk
0:04:14.9]} 13. Bf4 {[%clk 0:03:19.8]} 13... Be7 {[%clk 0:04:03.4]} 14. Bxf5
{[%clk 0:03:09]} 14... exf5 {[%clk 0:04:01.5]} 15. Nxd4 {[%clk 0:03:07]} 15...
Nxd4 {[%clk 0:03:58.4]} 16. Qxd4 {[%clk 0:03:06.6]} 16... O-O {[%clk 0:03:55.3]}
17. e6 {[%clk 0:03:04.9]} 1-0

[Event "Live Chess"]
[Site "Chess.com"]
[Date "2024.06.01"]
[Round "-"]
[White "Velocity"]
[Black "road2gm5000"]
[Result "1/2-1/2"]
[WhiteElo "1702"]
[BlackElo "1081"]
[TimeControl "300"]
[EndTime "10:43:07 PDT"]
[Termination "Game drawn by agreement"]

1. e4 {[%clk 0:04:59.7]} 1... c6 {[%clk 0:04:57.9]} 2. d4 {[%clk 0:04:58.6]}
2... d5 {[%clk 0:04:57.3]} 3. Nd2 {[%clk 0:04:57.9]} 3... dxe4 {[%clk
0:04:56.2]} 4. Nxe4 {[%clk 0:04:57.8]} 4... Nf6 {[%clk 0:04:55.6]} 5. Nxf6+
{[%clk 0:04:56.9]} 5... exf6 {[%clk 0:04:55.5]} 6. Nf3 {[%clk 0:04:54.1]} 6...
Bg4 {[%clk 0:04:54.8]} 7. h3 {[%clk 0:04:45.3]} 7... Bxf3 {[%clk 0:04:52.4]} 8.
Qxf3 {[%clk 0:04:45.2]} 8... Qd5 {[%clk 0:04:51.5]} 9. Qxd5 {[%clk 0:04:42.5]}
9... cxd5 {[%clk 0:04:51.4]} 10. Bb5+ {[%clk 0:04:41.2]} 10... Nc6 {[%clk
0:04:50.7]} 11. Bf4 {[%clk 0:04:28.5]} 11... Be7 {[%clk 0:04:45.1]} 12. O-O
{[%clk 0:04:15.6]} 12... O-O {[%clk 0:04:41.3]} 13. c3 {[%clk 0:04:13.2]} 13...
Rfe8 {[%clk 0:04:34.1]} 14. Bd3 {[%clk 0:04:05.9]} 14... Rad8 {[%clk 0:04:29.9]}
15. Rfe1 {[%clk 0:04:04.3]} 15... Bf8 {[%clk 0:04:23.2]} 16. Bc7 {[%clk
0:03:56.6]} 16... Rxe1+ {[%clk 0:04:20.1]} 17. Rxe1 {[%clk 0:03:56.5]} 17... Rc8
{[%clk 0:04:16.1]} 18. Bf4 {[%clk 0:03:52.3]} 18... g5 {[%clk 0:04:12.3]} 19.
Bg3 {[%clk 0:03:48.8]} 19... h5 {[%clk 0:04:08.1]} 20. f4 {[%clk 0:03:42.9]}
20... h4 {[%clk 0:04:05.4]} 21. Bh2 {[%clk 0:03:41.9]} 21... Kg7 {[%clk
0:04:03.1]} 22. Kf2 {[%clk 0:03:39.1]} 22... Bd6 {[%clk 0:03:58.5]} 23. Kf3
{[%clk 0:03:37.4]} 23... Kf8 {[%clk 0:03:50.9]} 24. Kg4 {[%clk 0:03:35]} 24...
Re8 {[%clk 0:03:48.1]} 25. Rxe8+ {[%clk 0:03:29.5]} 25... Kxe8 {[%clk 0:03:48]}
26. Kf5 {[%clk 0:03:25.5]} 26... Ke7 {[%clk 0:03:46.4]} 27. Bb5 {[%clk
0:03:18.4]} 27... a6 {[%clk 0:03:37.8]} 28. Bxc6 {[%clk 0:03:16.7]} 28... bxc6
{[%clk 0:03:37.7]} 29. g3 {[%clk 0:03:11.6]} 29... hxg3 {[%clk 0:03:33.1]} 30.
Bxg3 {[%clk 0:03:11.5]} 30... gxf4 {[%clk 0:03:30.4]} 31. Bxf4 {[%clk
0:03:09.8]} 31... Bxf4 {[%clk 0:03:29.7]} 32. Kxf4 {[%clk 0:03:09.2]} 32... Ke6
{[%clk 0:03:29.1]} 33. h4 {[%clk 0:03:06.9]} 33... f5 {[%clk 0:03:28.5]} 34. h5
{[%clk 0:03:06.1]} 34... Kf6 {[%clk 0:03:28.1]} 35. h6 {[%clk 0:03:03.5]} 35...
Kg6 {[%clk 0:03:23.9]} 36. h7 {[%clk 0:03:02.8]} 36... Kxh7 {[%clk 0:03:23]} 37.
Kxf5 {[%clk 0:03:02.7]} 37... Kg7 {[%clk 0:03:22.1]} 38. Ke5 {[%clk 0:02:58.4]}
38... Kg6 {[%clk 0:03:21]} 39. Kd6 {[%clk 0:02:56.3]} 39... Kg5 {[%clk
0:03:19.6]} 40. Kxc6 {[%clk 0:02:55.7]} 40... f5 {[%clk 0:03:19.4]} 41. Kxd5
{[%clk 0:02:55.2]} 41... f4 {[%clk 0:03:19.3]} 42. Ke4 {[%clk 0:02:54.5]} 42...
Kg4 {[%clk 0:03:18.7]} 43. d5 {[%clk 0:02:53.9]} 43... Kg3 {[%clk 0:03:18.3]}
44. d6 {[%clk 0:02:52.3]} 44... f3 {[%clk 0:03:17.9]} 45. Ke3 {[%clk 0:02:32.8]}
45... Kg2 {[%clk 0:03:16.5]} 46. d7 {[%clk 0:02:31]} 46... f2 {[%clk 0:03:16]}
47. d8=Q {[%clk 0:02:29.1]} 47... f1=Q {[%clk 0:03:15.3]} 48. Qg5+ {[%clk
0:02:20.3]} 48... Kh3 {[%clk 0:03:12.1]} 49. Qh5+ {[%clk 0:02:14.7]} 49... Kg3
{[%clk 0:03:07.2]} 50. Qe5+ {[%clk 0:02:08.3]} 50... Kh3 {[%clk 0:03:03.2]} 51.
Qh5+ {[%clk 0:02:04.9]} 51... Kg3 {[%clk 0:03:01.9]} 52. Qg5+ {[%clk 0:02:04.2]}
52... Kh3 {[%clk 0:03:01.2]} 53. Qf5+ {[%clk 0:02:00.3]} 53... Qxf5 {[%clk
0:02:58.2]} 1/2-1/2